fUSD/lending_fUSD_20240121
["ID","MTS","AMOUNT","RATE_DAILY","PERIOD"]
[312428420,1705870285378,-673.04,0.00043287,31]
[312428421,1705870285388,-500.0,0.00043287,31]
[312428422,1705870285397,-500.0,0.00043287,2]
[312428423,1705870285408,-500.0,0.00043287,31]
[312428424,1705870285418,-500.0,0.00043287,31]
[312428425,1705870285429,-832.97,0.00043287,31]
[312428426,1705870285438,-524.15,0.00043287,31]
[312428427,1705870285448,-500.0,0.00043287,7]
[312428428,1705870285457,-500.0,0.00043287,7]
[312428429,1705870285467,-820.29,0.00043287,31]
[312428430,1705870285476,-637.44,0.00043287,31]
[312428431,1705870285485,-500.0,0.00043287,31]
[312428432,1705870285495,-628.51,0.00043287,31]
[312428433,1705870285504,-560.62,0.00043287,31]
[312428434,1705870285513,-737.97,0.00043287,31]
[312428435,1705870285522,-500.0,0.00043287,31]
[312428436,1705870285532,-500.0,0.00043287,31]
[312428437,1705870285541,-500.0,0.00043287,31]
[312428438,1705870285550,-500.0,0.00043287,31]
[312428439,1705870285560,-1367.84,0.00043287,31]
[312428440,1705870285569,-1859.56,0.00043287,7]
[312428441,1705870285578,-861.26,0.00043287,31]
[312428442,1705870285587,-500.0,0.00043287,31]
[312428443,1705870285596,-796.03,0.00043287,31]
[312428444,1705870285606,-600.0,0.00043287,31]
[312428445,1705870285615,-1369.41,0.00043287,7]
[312428446,1705870285624,-564.23,0.00043287,31]
[312428447,1705870285634,-688.84,0.00043287,31]
[312428448,1705870285644,-1294.65,0.00043287,31]
[312428449,1705870285653,-525.89,0.00043287,31]
[312428450,1705870285663,-1167.81,0.00043287,31]
[312428451,1705870285672,-1106.26,0.00043287,2]
[312428452,1705870285681,-500.0,0.00043287,31]
[312428453,1705870285690,-1064.23,0.00043287,31]
[312428454,1705870285699,-603.16,0.00043287,31]
[312428455,1705870285709,-869.51,0.00043287,31]
[312428456,1705870285718,-788.25,0.00043287,31]
[312428457,1705870285727,-500.0,0.00043287,31]
[312428458,1705870285736,-914.4,0.00043287,31]
[312428459,1705870285745,-500.0,0.00043287,31]
[312428460,1705870285755,-500.0,0.00043287,31]
[312428461,1705870285764,-500.0,0.00043287,31]
[312428462,1705870285774,-1233.51,0.00043287,31]
[312428463,1705870285784,-943.8,0.00043287,31]
[312428464,1705870285793,-500.0,0.00043287,31]
[312428465,1705870285803,-500.0,0.00043287,31]
[312428466,1705870285812,-500.0,0.00043287,31]
[312428467,1705870285822,-500.0,0.00043287,31]
[312428468,1705870285831,-500.0,0.00043287,31]
[312428469,1705870285840,-500.0,0.00043287,31]
[312428470,1705870285850,-932.28,0.00043287,31]
[312428471,1705870286172,-1119.91,0.00043287,31]
[312428472,1705870286187,-500.0,0.00043287,31]
[312428473,1705870286197,-989.47,0.00043287,31]
[312428474,1705870286207,-500.0,0.00043287,31]
[312428475,1705870286216,-500.0,0.00043287,31]
[312428476,1705870286226,-500.0,0.00043287,31]
[312428477,1705870286236,-927.81,0.00043287,31]
[312428478,1705870286246,-505.83,0.00043287,31]
[312428479,1705870286255,-848.05,0.00043287,31]
[312428480,1705870286265,-517.8,0.00043287,31]
[312428481,1705870286274,-626.4,0.00043287,31]
[312428482,1705870286284,-1462.67,0.00043287,31]
[312428483,1705870286294,-828.9,0.00043287,31]
[312428484,1705870286303,-545.56,0.00043287,31]
[312428485,1705870286313,-500.0,0.00043287,31]
[312428486,1705870286322,-500.0,0.00043287,31]
[312428487,1705870286332,-554.46,0.00043287,31]
[312428488,1705870286342,-500.0,0.00043287,31]
[312428489,1705870286351,-553.23,0.00043287,31]
[312428490,1705870286360,-580.58,0.00043287,31]
[312428491,1705870286369,-1091.21,0.00043287,31]
[312428492,1705870286378,-676.21,0.00043287,31]
[312428493,1705870286388,-830.42,0.00043287,31]
[312428494,1705870286397,-973.22,0.00043287,31]
[312428495,1705870286406,-500.0,0.00043287,31]
[312428496,1705870286415,-500.0,0.00043287,31]
[312428497,1705870286425,-957.53,0.00043287,31]
[312428498,1705870286435,-500.0,0.00043287,31]
[312428499,1705870286445,-725.13,0.00043287,31]
[312428500,1705870286454,-500.0,0.00043287,31]
[312428501,1705870286466,-458.1192099,0.00043287,31]
[312428502,1705870286475,-500.0,0.00043287,31]
[312428503,1705870286485,-609.97,0.00043287,31]
[312428504,1705870286494,-500.0,0.00043287,31]
[312428505,1705870286504,-500.0,0.00043287,31]
[312428506,1705870286513,-500.0,0.00043287,31]
[312428507,1705870286523,-500.0,0.00043287,31]
[312428508,1705870286532,-500.0,0.00043287,31]
[312428509,1705870286541,-1082.23,0.00043287,31]
[312428510,1705870286551,-1164.54,0.00043287,31]
[312428511,1705870286560,-1276.61,0.00043287,31]
[312428512,1705870286570,-596.43,0.00043287,31]
[312428513,1705870286579,-1285.35,0.00043287,31]
[312428514,1705870286588,-500.0,0.00043287,31]
[312428515,1705870286597,-1889.54,0.00043287,31]
[312428516,1705870286607,-553.56,0.00043287,31]
[312428517,1705870286617,-504.46,0.00043287,31]
[312428518,1705870286627,-807.35,0.00043287,31]
[312428519,1705870286637,-1080.09,0.00043287,31]
[312428520,1705870286647,-581.24,0.00043287,31]
[312428521,1705870286658,-500.0,0.00043287,10]
[312428522,1705870286667,-556.31,0.00043287,31]
[312428523,1705870286677,-500.0,0.00043287,31]
[312428524,1705870286687,-500.0,0.00043287,31]
[312428525,1705870286697,-500.0,0.00043287,31]
[312428526,1705870286707,-1040.4,0.00043287,31]
[312428527,1705870286717,-500.0,0.00043287,31]
[312428528,1705870286726,-329.08,0.00043287,31]
[312428529,1705870286736,-500.0,0.00043287,31]
[312428530,1705870286746,-609.99,0.00043287,31]
[312428531,1705870286757,-667.03,0.00043287,31]
[312428532,1705870286767,-635.19,0.00043287,31]
[312428533,1705870286777,-500.0,0.00043287,31]
[312428534,1705870286787,-1114.61,0.00043287,31]
[312428535,1705870286797,-500.0,0.00043287,31]
[312428536,1705870286807,-500.0,0.00043287,31]
[312428537,1705870286817,-500.0,0.00043287,31]
[312428538,1705870286828,-1209.9,0.00043287,31]
[312428539,1705870286837,-904.83,0.00043287,31]
[312428540,1705870286847,-500.0,0.00043287,31]
[312428541,1705870286857,-500.0,0.00043287,31]
[312428542,1705870286866,-5488.24,0.00043287,31]
[312428543,1705870286876,-709.79,0.00043287,31]
[312428544,1705870286885,-589.43,0.00043287,31]
[312428545,1705870286894,-735.58,0.00043287,31]
[312428546,1705870286904,-500.0,0.00043287,31]
[312428547,1705870286913,-500.0,0.00043287,31]
[312428548,1705870286923,-411.43408502,0.00043287,31]
[312428549,1705870286932,-519.74,0.00043287,31]
[312428550,1705870286942,-568.11,0.00043287,31]
[312428551,1705870286952,-764.25,0.00043287,31]
[312428552,1705870286961,-535.34,0.00043287,31]
[312428553,1705870286971,-500.0,0.00043287,31]
[312428554,1705870286980,-500.0,0.00043287,31]
[312428555,1705870286994,-1130.84,0.00043287,31]
[312428556,1705870287003,-500.0,0.00043287,31]
[312428557,1705870287014,-1498.71,0.00043287,31]
[312428558,1705870287024,-500.0,0.00043287,31]
[312428559,1705870287034,-1158.24,0.00043287,31]
[312428560,1705870287043,-4751.71,0.00043287,31]
[312428561,1705870287052,-624.43,0.00043287,31]
[312428562,1705870287063,-580.26,0.00043287,31]
[312428563,1705870287073,-500.0,0.00043287,31]
[312428564,1705870287083,-500.0,0.00043287,31]
[312428565,1705870287092,-500.0,0.00043287,31]
[312428566,1705870287102,-506.01440032,0.00043287,31]
[312428567,1705870287111,-10825.37,0.00043287,31]
[312428568,1705870287120,-1841.83,0.00043287,31]
[312428569,1705870287130,-500.0,0.00043287,31]
[312428570,1705870287139,-861.14,0.00043287,31]
[312428571,1705870287148,-500.0,0.00043287,31]
[312428572,1705870287159,-1378.55,0.00043287,31]
[312428573,1705870287169,-500.0,0.00043287,31]
[312428574,1705870287179,-500.0,0.00043287,31]
[312428575,1705870287188,-500.0,0.00043287,31]
[312428576,1705870287198,-4524.14,0.00043287,31]
[312428577,1705870287207,-500.0,0.00043287,31]
[312428578,1705870287216,-1414.98,0.00043287,31]
[312428579,1705870287226,-2876.21,0.00043287,31]
[312428580,1705870287236,-1222.44,0.00043287,31]
[312428581,1705870287246,-500.0,0.00043287,31]
[312428582,1705870287256,-500.0,0.00043287,31]
[312428583,1705870287265,-500.0,0.00043287,31]
[312428584,1705870287274,-1644.24,0.00043287,31]
[312428585,1705870287284,-500.0,0.00043287,31]
[312428586,1705870287293,-500.0,0.00043287,31]
[312428587,1705870287303,-211.73967773,0.00043287,31]
[312428588,1705870287312,-500.0,0.00043287,31]
[312428589,1705870287322,-500.13,0.00043287,31]
[312428590,1705870287331,-513.5,0.00043287,31]
[312428591,1705870287340,-500.0,0.00043287,31]
[312428592,1705870287350,-500.0,0.00043287,31]
[312428593,1705870287360,-7895.19,0.00043287,31]
[312428594,1705870287369,-5028.21,0.00043287,31]
[312428595,1705870287378,-931.76,0.00043287,31]
[312428596,1705870287388,-969.52,0.00043287,31]
[312428597,1705870287397,-500.0,0.00043287,31]
[312428598,1705870287406,-1000.0,0.00043287,31]
[312428599,1705870287416,-1384.89,0.00043287,31]
[312428600,1705870287425,-500.0,0.00043287,31]
[312428601,1705870287435,-1137.66,0.00043287,31]
[312428602,1705870287444,-824.19,0.00043287,31]
[312428603,1705870287454,-11157.76,0.00043287,31]
[312428604,1705870287463,-1060.28,0.00043287,31]
[312428605,1705870287472,-500.0,0.00043287,31]
[312428606,1705870287481,-3059.97,0.00043287,31]
[312428607,1705870287491,-763.53,0.00043287,31]
[312428608,1705870287500,-2691.28,0.00043287,31]
[312428609,1705870287509,-500.0,0.00043287,31]
[312428610,1705870287520,-2159.1,0.00043287,31]
[312428611,1705870287529,-577.63,0.00043287,31]
[312428612,1705870287538,-2191.37,0.00043287,31]
[312428613,1705870287547,-500.0,0.00043287,31]
[312428614,1705870287556,-821.15,0.00043287,31]
[312428615,1705870287566,-500.0,0.00043287,31]
[312428616,1705870287575,-500.0,0.00043287,60]
[312428617,1705870287587,-162.91,0.00043287,31]
[312428618,1705870287596,-590.37,0.00043287,31]
[312428619,1705870287606,-10245.49,0.00043287,31]
[312428620,1705870287615,-197.14,0.00043287,31]
[312428621,1705870287624,-8519.53,0.00043287,31]
[312428622,1705870287633,-500.0,0.00043287,31]
[312428623,1705870287643,-500.0,0.00043287,31]
[312428624,1705870287652,-1411.8,0.00043287,31]
[312428625,1705870287662,-1158.54,0.00043287,31]
[312428626,1705870287671,-500.0,0.00043287,31]
[312428627,1705870287682,-200.71757931,0.00043287,31]
[312428628,1705870287692,-656.4,0.00043287,31]
[312428629,1705870287703,-601.52004208,0.00043287,31]
[312428630,1705870287714,-2592.98,0.00043287,31]
[312428631,1705870287725,-500.0,0.00043287,31]
[312428632,1705870287735,-1453.26,0.00043287,31]
[312428633,1705870287746,-1868.6,0.00043287,31]
[312428634,1705870287757,-9841.58,0.00043287,31]
[312428635,1705870287768,-500.0,0.00043287,31]
[312428636,1705870287780,-1033.13,0.00043287,31]
[312428637,1705870287790,-500.0,0.00043287,31]
[312428638,1705870287801,-892.41,0.00043287,31]
[312428639,1705870287811,-752.49,0.00043287,31]
[312428640,1705870287822,-500.0,0.00043287,31]
[312428641,1705870287832,-899.55,0.00043287,31]
[312428642,1705870287841,-1749.1,0.00043287,31]
[312428643,1705870287851,-414.87439677,0.00043287,31]
[312428644,1705870287860,-948.83,0.00043287,31]
[312428645,1705870287870,-1603.55,0.00043287,31]
[312428646,1705870287880,-500.0,0.00043287,31]
[312428647,1705870287890,-633.49,0.00043287,31]
[312428648,1705870287900,-4429.48,0.00043287,31]
[312428649,1705870287910,-500.0,0.00043287,31]
[312428650,1705870287919,-668.22,0.00043287,31]
[312428651,1705870287929,-5882.87,0.00043287,31]
[312428652,1705870287938,-941.47,0.00043287,31]
[312428653,1705870287947,-5004.74,0.00043287,31]
[312428654,1705870287957,-595.33,0.00043287,31]
[312428655,1705870287968,-500.0,0.00043287,31]
[312428656,1705870287978,-1134.24,0.00043287,31]
[312428657,1705870287992,-500.0,0.00043287,31]
[312428658,1705870288002,-546.83,0.00043287,31]
[312428659,1705870288011,-500.0,0.00043287,31]
[312428660,1705870288021,-649.66,0.00043287,31]
[312428661,1705870288031,-4096.59,0.00043287,31]
[312428662,1705870288040,-1463.18,0.00043287,31]
[312428663,1705870288050,-2332.87,0.00043287,31]
[312428664,1705870288060,-500.0,0.00043287,31]
[312428665,1705870288070,-27362.59,0.00043287,31]
[312428666,1705870288080,-500.0,0.00043287,31]
[312428667,1705870288090,-1378.77,0.00043287,31]
[312428668,1705870288099,-500.0,0.00043287,31]
[312428669,1705870288109,-500.0,0.00043287,31]
[312428670,1705870288118,-921.68,0.00043287,31]
[312428671,1705870288127,-500.0,0.00043287,31]
[312428672,1705870288135,-1000.0,0.00043287,2]
[312428673,1705870288144,-2802.75,0.00043287,31]
[312428674,1705870288152,-2337.4,0.00043287,31]
[312428675,1705870288162,-500.0,0.00043287,31]
[312428676,1705870288171,-2796.13,0.00043287,31]
[312428677,1705870288179,-2620.7,0.00043287,31]
[312428678,1705870288188,-500.0,0.00043287,31]
[312428679,1705870288197,-3405.72,0.00043287,31]
[312428680,1705870288207,-500.0,0.00043287,31]
[312428681,1705870288217,-4313.54,0.00043287,31]
[312428682,1705870288226,-3756.83,0.00043287,31]
[312428683,1705870288236,-500.0,0.00043287,31]
[312428684,1705870288245,-847.13,0.00043287,31]
[312428685,1705870288254,-500.0,0.00043287,31]
[312428686,1705870288264,-500.0,0.00043287,31]
[312428687,1705870288273,-500.0,0.00043287,31]
[312428688,1705870288282,-1629.98,0.00043287,31]
[312428689,1705870288292,-847.17,0.00043287,31]
[312428690,1705870288301,-556.07,0.00043287,31]
[312428691,1705870288311,-1330.65,0.00043287,31]
[312428692,1705870288320,-926.4,0.00043287,31]
[312428693,1705870288329,-500.0,0.00043287,31]
[312428694,1705870288338,-598.64,0.00043287,31]
[312428695,1705870288348,-3454.25,0.00043287,31]
[312428696,1705870288357,-3227.73,0.00043287,31]
[312428697,1705870288366,-1401.95,0.00043287,31]
[312428698,1705870288376,-2701.1,0.00043287,31]
[312428699,1705870288384,-11421.63,0.00043287,31]
[312428700,1705870288394,-529.59,0.00043287,31]
[312428701,1705870288403,-14628.12,0.00043287,31]
[312428702,1705870288413,-2678.53,0.00043287,31]
[312428703,1705870288422,-501.3,0.00043287,31]
[312428704,1705870288432,-2914.63,0.00043287,31]
[312428705,1705870288441,-500.0,0.00043287,31]
[312428706,1705870288450,-4883.36,0.00043287,31]
[312428707,1705870288460,-2375.88,0.00043287,31]
[312428708,1705870288469,-1360.41,0.00043287,31]
[312428709,1705870288479,-500.0,0.00043287,31]
[312428710,1705870288489,-500.0,0.00043287,31]
[312428711,1705870288497,-725.58,0.00043287,31]
[312428712,1705870288585,-2391.51,0.00043287,31]
[312428713,1705870288594,-500.0,0.00043287,31]
[312428714,1705870288604,-500.0,0.00043287,31]
[312428715,1705870288614,-1279.14,0.00043287,31]
[312428716,1705870288623,-893.08,0.00043287,31]
[312428717,1705870288632,-500.0,0.00043287,2]
[312428718,1705870288641,-500.0,0.00043287,31]
[312428719,1705870288650,-500.0,0.00043287,31]
[312428720,1705870288659,-731.38,0.00043287,31]
[312428721,1705870288669,-1920.83,0.00043287,31]
[312428722,1705870288679,-500.0,0.00043287,15]
[312428723,1705870288688,-2527.86,0.00043287,31]
[312428724,1705870288697,-500.0,0.00043287,31]
[312428725,1705870288707,-642.75,0.00043287,31]
[312428726,1705870288716,-4484.86,0.00043287,31]
[312428727,1705870288725,-500.0,0.00043287,31]
[312428728,1705870288734,-2161.01,0.00043287,31]
[312428729,1705870288743,-4070.17,0.00043287,31]
[312428730,1705870288752,-500.0,0.00043287,2]
[312428731,1705870288762,-759.57,0.00043287,31]
[312428732,1705870288771,-675.98,0.00043287,31]
[312428733,1705870288781,-500.0,0.00043287,31]
[312428734,1705870288790,-1832.66,0.00043287,31]
[312428735,1705870288799,-500.0,0.00043287,31]
[312428736,1705870288810,-1806.41,0.00043287,31]
[312428737,1705870288819,-1936.35,0.00043287,31]
[312428738,1705870288829,-787.04,0.00043287,31]
[312428739,1705870288839,-500.0,0.00043287,31]
[312428740,1705870288848,-500.0,0.00043287,31]
[312428741,1705870288858,-674.44,0.00043287,31]
[312428742,1705870288867,-8992.54,0.00043287,31]
[312428743,1705870288876,-500.0,0.00043287,31]
[312428744,1705870288886,-750.4,0.00043287,31]
[312428745,1705870288896,-653.05,0.00043287,31]
[312428746,1705870288906,-669.01,0.00043287,31]
[312428747,1705870288915,-500.0,0.00043287,31]
[312428748,1705870288925,-500.0,0.00043287,31]
[312428749,1705870288936,-500.0,0.00043287,31]
[312428750,1705870288945,-500.0,0.00043287,31]
[312428751,1705870288954,-537.75208973,0.00043287,31]
[312428752,1705870288964,-584.15,0.00043287,31]
[312428753,1705870288978,-851.66,0.00043287,31]
[312428754,1705870288987,-500.0,0.00043287,31]
[312428755,1705870288997,-2219.45,0.00043287,31]
[312428756,1705870289009,-2612.98,0.00043287,31]
[312428757,1705870289019,-500.0,0.00043287,7]
[312428758,1705870289028,-1019.93,0.00043287,31]
[312428759,1705870289038,-3882.97,0.00043287,31]
[312428760,1705870289048,-500.0,0.00043287,31]
[312428761,1705870289057,-500.0,0.00043287,31]
[312428762,1705870289067,-500.0,0.00043287,31]
[312428763,1705870289076,-500.0,0.00043287,31]
[312428764,1705870289086,-500.0,0.00043287,31]
[312428765,1705870289095,-2872.23,0.00043287,31]
[312428766,1705870289104,-4505.91,0.00043287,31]
[312428767,1705870289114,-500.0,0.00043287,31]
[312428768,1705870289124,-2205.33,0.00043287,31]
[312428769,1705870289135,-988.7,0.00043287,31]
[312428770,1705870289144,-500.0,0.00043287,31]
[312428771,1705870289154,-1267.21,0.00043287,31]
[312428772,1705870289164,-658.6,0.00043287,31]
[312428773,1705870289175,-500.0,0.00043287,31]
[312428774,1705870289184,-500.0,0.00043287,31]
[312428775,1705870289193,-2972.51,0.00043287,31]
[312428776,1705870289203,-500.0,0.00043287,31]
[312428777,1705870289212,-853.77,0.00043287,31]
[312428778,1705870289222,-1107.12,0.00043287,31]
[312428779,1705870289231,-1314.93,0.00043287,31]
[312428780,1705870289240,-500.0,0.00043287,31]
[312428781,1705870289250,-1849.64,0.00043287,31]
[312428782,1705870289259,-500.0,0.00043287,31]
[312428783,1705870289268,-500.0,0.00043287,31]
[312428784,1705870289278,-1195.98,0.00043287,31]
[312428785,1705870289287,-17008.49,0.00043287,31]
[312428786,1705870289296,-500.0,0.00043287,31]
[312428787,1705870289305,-22836.0,0.00043287,31]
[312428788,1705870289314,-1627.05,0.00043287,31]
[312428789,1705870289324,-2658.3,0.00043287,31]
[312428790,1705870289333,-500.0,0.00043287,31]
[312428791,1705870289342,-500.0,0.00043287,31]
[312428792,1705870289352,-5254.2,0.00043287,31]
[312428793,1705870289361,-500.0,0.00043287,31]
[312428794,1705870289370,-500.0,0.00043287,31]
[312428795,1705870289379,-1608.45,0.00043287,31]
[312428796,1705870289388,-667.93,0.00043287,31]
[312428797,1705870289398,-1676.72,0.00043287,31]
[312428798,1705870289408,-1321.38,0.00043287,31]
[312428799,1705870289417,-500.0,0.00043287,10]
[312428800,1705870289426,-500.0,0.00043287,31]
[312428801,1705870289435,-500.0,0.00043287,31]
[312428802,1705870289444,-500.0,0.00043287,31]
[312428803,1705870289453,-4524.08,0.00043287,31]
[312428804,1705870289462,-500.0,0.00043287,31]
[312428805,1705870289472,-1427.69,0.00043287,31]
[312428806,1705870289481,-1226.7,0.00043287,31]
[312428807,1705870289491,-1551.72,0.00043287,31]
[312428808,1705870289501,-1780.61,0.00043287,31]
[312428809,1705870289510,-500.0,0.00043287,31]
[312428810,1705870289520,-1860.53,0.00043287,31]
[312428811,1705870289530,-2009.88,0.00043287,31]
[312428812,1705870289540,-575.64554365,0.00043287,31]
[312428813,1705870289550,-391.15261668,0.00043287,31]
[312428814,1705870289559,-500.0,0.00043287,31]
[312428815,1705870289569,-1181.79,0.00043287,31]
[312428816,1705870289579,-500.0,0.00043287,31]
[312428817,1705870289588,-3153.42,0.00043287,31]
[312428818,1705870289597,-500.0,0.00043287,31]
[312428819,1705870289607,-12471.26,0.00043287,31]
[312428820,1705870289616,-1229.48,0.00043287,31]
[312428821,1705870289625,-500.0,0.00043287,31]
[312428822,1705870289634,-500.0,0.00043287,31]
[312428823,1705870289643,-2810.25,0.00043287,31]
[312428824,1705870289652,-2374.7,0.00043287,31]
[312428825,1705870289662,-1928.62,0.00043287,31]
[312428826,1705870289671,-1824.94,0.00043287,31]
[312428827,1705870289681,-500.0,0.00043287,31]
[312428828,1705870289690,-848.85,0.00043287,31]
[312428829,1705870289699,-500.0,0.00043287,31]
[312428830,1705870289708,-632.51,0.00043287,31]
[312428831,1705870289717,-500.0,0.00043287,5]
[312428832,1705870289727,-3735.69,0.00043287,31]
[312428833,1705870289736,-7294.65,0.00043287,31]
[312428834,1705870289745,-500.0,0.00043287,31]
[312428835,1705870289757,-1715.0,0.00043287,31]
[312428836,1705870289766,-500.0,0.00043287,31]
[312428837,1705870289775,-1151.74,0.00043287,31]
[312428838,1705870289785,-3322.7,0.00043287,31]
[312428839,1705870289794,-559.49,0.00043287,31]
[312428840,1705870289804,-1371.13,0.00043287,31]
[312428841,1705870289813,-2377.22,0.00043287,31]
[312428842,1705870289822,-500.0,0.00043287,31]
[312428843,1705870289831,-2200.89,0.00043287,31]
[312428844,1705870289841,-500.0,0.00043287,31]
[312428845,1705870289850,-2062.02,0.00043287,31]
[312428846,1705870289859,-3913.17,0.00043287,31]
[312428847,1705870289869,-500.0,0.00043287,31]
[312428848,1705870289878,-500.0,0.00043287,31]
[312428849,1705870289888,-500.0,0.00043287,2]
[312428850,1705870289898,-3014.0,0.00043287,31]
[312428851,1705870289907,-875.02,0.00043287,31]
[312428852,1705870289916,-1174.77,0.00043287,31]
[312428853,1705870289925,-889.77,0.00043287,31]
[312428854,1705870289935,-6008.81,0.00043287,31]
[312428855,1705870289946,-3531.34,0.00043287,31]
[312428856,1705870289955,-500.0,0.00043287,31]
[312428857,1705870289966,-500.0,0.00043287,31]
[312428858,1705870289975,-1637.2,0.00043287,31]
[312428859,1705870289987,-632.68,0.00043287,31]
[312428860,1705870289997,-192.43198623,0.00043287,31]
[312428861,1705870290007,-5179.35,0.00043287,31]
[312428862,1705870290016,-907.37,0.00043287,31]
[312428863,1705870290026,-500.0,0.00043287,31]
[312428864,1705870290036,-4278.52,0.00043287,31]
[312428865,1705870290045,-1175.27,0.00043287,31]
[312428866,1705870290057,-500.0,0.00043287,31]
[312428867,1705870290067,-500.0,0.00043287,31]
[312428868,1705870290077,-500.0,0.00043287,31]
[312428869,1705870290086,-500.0,0.00043287,31]
[312428870,1705870290096,-500.0,0.00043287,31]
[312428871,1705870290105,-518.45029181,0.00043287,31]
[312428872,1705870290115,-500.0,0.00043287,31]
[312428873,1705870290124,-859.65,0.00043287,31]
[312428874,1705870290133,-683.71,0.00043287,31]
[312428875,1705870290142,-1644.32,0.00043287,31]
[312428876,1705870290152,-500.0,0.00043287,31]
[312428877,1705870290163,-707.51,0.00043287,31]
[312428878,1705870290173,-3948.09,0.00043287,31]
[312428879,1705870290184,-455.68580695,0.00043287,31]
[312428880,1705870290193,-815.97,0.00043287,31]
[312428881,1705870290204,-951.87,0.00043287,31]
[312428882,1705870290214,-1407.91,0.00043287,31]
[312428883,1705870290224,-500.0,0.00043287,2]
[312428884,1705870290234,-13478.6,0.00043287,31]
[312428885,1705870290243,-1284.01,0.00043287,31]
[312428886,1705870290253,-2583.69,0.00043287,31]
[312428887,1705870290262,-500.0,0.00043287,5]
[312428888,1705870290271,-510.79,0.00043287,31]
[312428889,1705870290281,-508.01,0.00043287,31]
[312428890,1705870290290,-500.0,0.00043287,31]
[312428891,1705870290299,-782.79,0.00043287,31]
[312428892,1705870290308,-1839.12,0.00043287,5]
[312428893,1705870290317,-42604.89436296,0.000433,30]
[312428894,1705870290326,-1000.0,0.00043439,15]
[312428895,1705870290336,-1000.0,0.00043439,15]
[312428896,1705870290345,-1000.0,0.00043439,15]
[312428897,1705870290354,-257.0,0.0004345,2]
[312428898,1705870290363,-347.01790484,0.00043461,37]
[312428899,1705870290373,-310.16,0.00043464,2]
[312428900,1705870290382,-204.0,0.0004348,2]
[312428901,1705870290391,-203.0,0.0004348,2]
[312428902,1705870290401,-150.57983549,0.000435,19]
[312428903,1705870290411,-4108.27131302,0.00043552,18]
[312428904,1705870290421,-154.6659948,0.00043607,30]
[312428905,1705870290430,-1208.97682583,0.00043637,2]
[312428906,1705870290439,-2237.70895589,0.00043735,2]
[312428907,1705870290448,-84985.0,0.00043737,30]
[312428908,1705870290457,-1091.0,0.00043737,30]
[312428909,1705870290467,-157.71,0.00043783,2]
[312428910,1705870290476,-498.0,0.0004379,3]
[312428911,1705870290486,-287.86,0.000438,7]
[312428912,1705870290495,-150.57983549,0.000438,21]
[312428913,1705870290505,-194.52363278,0.00043821,14]
[312428914,1705870290514,-194.52363278,0.00043821,14]
[312428915,1705870290523,-194.52,0.00043821,14]
[312428916,1705870290532,-155.61890623,0.00043821,14]
[312428917,1705870290542,-290.61,0.00043821,14]
[312428918,1705870290551,-198.89367644,0.00043821,14]
[312428919,1705870290561,-198.89,0.00043821,14]